[Event "GrandPrix_29.05"]
[Site "Chess.com"]
[Date "2020.05.29"]
[Round "1"]
[White "Supernotar"]
[Black "rasmussvane"]
[Result "1/2-1/2"]
[WhiteElo "2151"]
[BlackElo "2345"]
[TimeControl "600+2"]
[EndTime "9:12:46 PDT"]
[Termination "Game drawn by agreement"]

1. d4 {[%clk 0:10:01.8]} 1... d5 {[%clk 0:09:55.7]} 2. c4 {[%clk 0:10:02.2]}
2... e6 {[%clk 0:09:55.9]} 3. Nf3 {[%clk 0:10:02.6]} 3... a6 {[%clk 0:09:56]} 4.
e3 {[%clk 0:10:03]} 4... Nf6 {[%clk 0:09:54.4]} 5. Nbd2 {[%clk 0:10:03.4]} 5...
b6 {[%clk 0:09:43]} 6. Bd3 {[%clk 0:10:00.7]} 6... Bb7 {[%clk 0:09:43.2]} 7. O-O
{[%clk 0:10:01.3]} 7... Bd6 {[%clk 0:09:42.2]} 8. b3 {[%clk 0:10:00.9]} 8... O-O
{[%clk 0:09:42.1]} 9. Bb2 {[%clk 0:10:01.8]} 9... Nbd7 {[%clk 0:09:42.6]} 10.
Qe2 {[%clk 0:10:02.4]} 10... Ne4 {[%clk 0:09:02.3]} 11. Rad1 {[%clk 0:09:49.8]}
11... Qe7 {[%clk 0:08:55.7]} 12. Ne5 {[%clk 0:09:49.7]} 12... Bxe5 {[%clk
0:07:58.6]} 13. dxe5 {[%clk 0:09:49.8]} 13... Nxd2 {[%clk 0:07:33.3]} 14. Rxd2
{[%clk 0:09:45]} 14... dxc4 {[%clk 0:06:49]} 15. Bxc4 {[%clk 0:09:35.8]} 15...
Rfd8 {[%clk 0:06:49.8]} 16. Rfd1 {[%clk 0:09:30.7]} 16... b5 {[%clk 0:06:25.4]}
17. Bd3 {[%clk 0:09:29.1]} 17... Nb6 {[%clk 0:06:26]} 18. e4 {[%clk 0:09:07.9]}
18... Rd7 {[%clk 0:06:16]} 19. Bc2 {[%clk 0:09:00.4]} 19... Rad8 {[%clk
0:06:14.9]} 20. Rxd7 {[%clk 0:08:36.7]} 20... Rxd7 {[%clk 0:06:13.6]} 21. Rxd7
{[%clk 0:08:37]} 21... Qxd7 {[%clk 0:05:52.9]} 22. Qd3 {[%clk 0:08:35.7]} 22...
Qxd3 {[%clk 0:05:31.6]} 23. Bxd3 {[%clk 0:08:36.1]} 23... Nd7 {[%clk 0:05:32.3]}
24. f3 {[%clk 0:08:25]} 24... c5 {[%clk 0:04:33.8]} 25. Kf2 {[%clk 0:08:20.8]}
25... Kf8 {[%clk 0:04:34.6]} 26. Ke3 {[%clk 0:08:21]} 26... Ke8 {[%clk
0:04:35.5]} 27. f4 {[%clk 0:08:14.8]} 27... Nb6 {[%clk 0:04:33.8]} 28. g4 {[%clk
0:07:43.4]} 28... Bc6 {[%clk 0:04:24.8]} 29. h4 {[%clk 0:07:33.6]} 29... a5
{[%clk 0:04:22.6]} 30. h5 {[%clk 0:07:19.1]} 30... a4 {[%clk 0:04:07.6]} 31. g5
{[%clk 0:07:11]} 31... axb3 {[%clk 0:04:07.1]} 32. axb3 {[%clk 0:07:11.2]} 32...
c4 {[%clk 0:03:59.5]} 33. bxc4 {[%clk 0:06:56.9]} 33... Nxc4+ {[%clk 0:03:59]}
34. Bxc4 {[%clk 0:06:52.8]} 34... bxc4 {[%clk 0:04:00.9]} 35. Kd4 {[%clk
0:06:52.6]} 1/2-1/2

[Event "GrandPrix_29.05"]
[Site "Chess.com"]
[Date "2020.05.29"]
[Round "1"]
[White "Andrjywa"]
[Black "AsadliVugar"]
[Result "1-0"]
[WhiteElo "2014"]
[BlackElo "1944"]
[TimeControl "600+2"]
[EndTime "9:12:56 PDT"]
[Termination "Andrjywa won by resignation"]

1. e4 {[%clk 0:09:55.5]} 1... e5 {[%clk 0:09:55]} 2. Nf3 {[%clk 0:09:55.6]} 2...
Nc6 {[%clk 0:09:55.8]} 3. d4 {[%clk 0:09:55.9]} 3... exd4 {[%clk 0:09:55.2]} 4.
c3 {[%clk 0:09:56.8]} 4... d3 {[%clk 0:09:43]} 5. Bxd3 {[%clk 0:09:31.4]} 5...
d6 {[%clk 0:09:40.4]} 6. O-O {[%clk 0:09:27.3]} 6... Nf6 {[%clk 0:09:36.3]} 7.
h3 {[%clk 0:09:23.3]} 7... Be7 {[%clk 0:09:35.8]} 8. Bf4 {[%clk 0:09:05.2]} 8...
O-O {[%clk 0:09:23.5]} 9. Nbd2 {[%clk 0:08:57.2]} 9... Re8 {[%clk 0:09:13.2]}
10. Re1 {[%clk 0:08:56.8]} 10... Bf8 {[%clk 0:09:11.5]} 11. Nc4 {[%clk
0:08:54.2]} 11... b5 {[%clk 0:08:59.7]} 12. Ne3 {[%clk 0:08:50.7]} 12... Rb8
{[%clk 0:08:53.3]} 13. e5 {[%clk 0:08:44.8]} 13... dxe5 {[%clk 0:08:22.3]} 14.
Nxe5 {[%clk 0:08:27.3]} 14... Nxe5 {[%clk 0:08:18.7]} 15. Bxe5 {[%clk
0:08:27.8]} 15... Bb7 {[%clk 0:08:17.8]} 16. Bxf6 {[%clk 0:08:08]} 16... Qxf6
{[%clk 0:08:13.3]} 17. Bxb5 {[%clk 0:08:08.5]} 17... Re5 {[%clk 0:07:39.8]} 18.
Bf1 {[%clk 0:07:51.2]} 18... h5 {[%clk 0:07:24]} 19. b4 {[%clk 0:05:58.4]} 19...
Rd8 {[%clk 0:07:05.7]} 20. Qe2 {[%clk 0:05:42.4]} 20... g6 {[%clk 0:06:41.5]}
21. Ng4 {[%clk 0:05:20.5]} 21... hxg4 {[%clk 0:06:15.7]} 22. Qxe5 {[%clk
0:05:21.3]} 22... Qc6 {[%clk 0:06:12]} 23. hxg4 {[%clk 0:04:46.3]} 23... Bg7
{[%clk 0:06:12.5]} 24. Qc5 {[%clk 0:04:36.5]} 24... Bxc3 {[%clk 0:06:13.3]} 25.
Rad1 {[%clk 0:04:19.4]} 25... Rxd1 {[%clk 0:06:01.8]} 26. Rxd1 {[%clk
0:04:17.6]} 26... Qf6 {[%clk 0:06:02.4]} 27. Qxc7 {[%clk 0:04:11.4]} 1-0

[Event "GrandPrix_29.05"]
[Site "Chess.com"]
[Date "2020.05.29"]
[Round "1"]
[White "Sunnika"]
[Black "Misterlose0"]
[Result "1/2-1/2"]
[WhiteElo "2209"]
[BlackElo "1339"]
[TimeControl "600+2"]
[EndTime "9:13:15 PDT"]
[Termination "Game drawn by agreement"]

1. d4 {[%clk 0:09:56.6]} 1... Nf6 {[%clk 0:10:00.4]} 2. Nf3 {[%clk 0:09:06.4]}
2... e6 {[%clk 0:09:21]} 3. Bf4 {[%clk 0:09:04.1]} 3... c5 {[%clk 0:09:20.1]} 4.
e3 {[%clk 0:09:04.2]} 4... d5 {[%clk 0:09:20.7]} 5. c3 {[%clk 0:09:03.8]} 5...
Bd6 {[%clk 0:09:20.7]} 6. Bg3 {[%clk 0:09:04.7]} 6... Qc7 {[%clk 0:09:21.3]} 7.
Nbd2 {[%clk 0:09:04]} 7... Nbd7 {[%clk 0:09:20.2]} 8. Be2 {[%clk 0:07:47.9]}
8... O-O {[%clk 0:09:12.5]} 9. O-O {[%clk 0:07:41.2]} 9... e5 {[%clk 0:09:11]}
10. dxe5 {[%clk 0:07:38.9]} 10... Nxe5 {[%clk 0:09:12.9]} 11. Nxe5 {[%clk
0:07:37.9]} 11... Bxe5 {[%clk 0:09:14.8]} 12. Bxe5 {[%clk 0:07:17.7]} 12... Qxe5
{[%clk 0:09:16.7]} 13. Nf3 {[%clk 0:07:19.1]} 13... Qc7 {[%clk 0:09:12.2]} 14.
Qc2 {[%clk 0:07:19.6]} 14... Bg4 {[%clk 0:09:10.2]} 15. Rad1 {[%clk 0:07:18.3]}
15... Rad8 {[%clk 0:09:11]} 16. Rfe1 {[%clk 0:07:17.6]} 16... Rfe8 {[%clk
0:09:12]} 17. c4 {[%clk 0:07:02.9]} 17... dxc4 {[%clk 0:08:16.7]} 18. Qxc4
{[%clk 0:07:01.8]} 18... Be6 {[%clk 0:07:57]} 19. Qc2 {[%clk 0:06:53.7]} 19...
Qb6 {[%clk 0:07:31.1]} 20. Nd2 {[%clk 0:06:39.5]} 20... h5 {[%clk 0:07:10.2]}
21. h3 {[%clk 0:06:35.3]} 21... g6 {[%clk 0:06:19.5]} 22. Nc4 {[%clk 0:06:33]}
22... Qc7 {[%clk 0:06:18.2]} 23. Bf3 {[%clk 0:06:21.7]} 23... Nd5 {[%clk
0:06:17.8]} 24. a3 {[%clk 0:06:16.5]} 24... Nb6 {[%clk 0:05:28.4]} 25. Nxb6
{[%clk 0:06:13.4]} 25... Qxb6 {[%clk 0:05:29.1]} 26. Rxd8 {[%clk 0:06:03]} 26...
Rxd8 {[%clk 0:05:31]} 27. Rd1 {[%clk 0:05:50.8]} 27... Rxd1+ {[%clk 0:05:00.2]}
28. Bxd1 {[%clk 0:05:52.7]} 28... Qd6 {[%clk 0:04:39.3]} 29. Bf3 {[%clk
0:05:52.1]} 29... b6 {[%clk 0:04:40.1]} 30. h4 {[%clk 0:05:48.3]} 30... Qd8
{[%clk 0:04:19.9]} 1/2-1/2

[Event "GrandPrix_29.05"]
[Site "Chess.com"]
[Date "2020.05.29"]
[Round "1"]
[White "RaphaeI"]
[Black "Karacsonyi_Gellert"]
[Result "1/2-1/2"]
[WhiteElo "2364"]
[BlackElo "2177"]
[TimeControl "600+2"]
[EndTime "9:13:16 PDT"]
[Termination "Game drawn by agreement"]

1. Nf3 {[%clk 0:09:57.6]} 1... Nf6 {[%clk 0:09:59]} 2. c4 {[%clk 0:09:57.7]}
2... e6 {[%clk 0:09:58.2]} 3. g3 {[%clk 0:09:58.5]} 3... d5 {[%clk 0:09:57.3]}
4. Bg2 {[%clk 0:09:55.8]} 4... dxc4 {[%clk 0:09:57.2]} 5. Qa4+ {[%clk
0:09:56.1]} 5... Bd7 {[%clk 0:09:57.9]} 6. Qxc4 {[%clk 0:09:53.7]} 6... c5
{[%clk 0:09:57.1]} 7. Ne5 {[%clk 0:09:52.1]} 7... Qc8 {[%clk 0:09:55.7]} 8. Qd3
{[%clk 0:09:28.8]} 8... Bc6 {[%clk 0:09:25.2]} 9. Nxc6 {[%clk 0:09:22.8]} 9...
Nxc6 {[%clk 0:09:12.4]} 10. Nc3 {[%clk 0:09:23.7]} 10... Be7 {[%clk 0:09:09.3]}
11. O-O {[%clk 0:09:22.5]} 11... O-O {[%clk 0:09:07.8]} 12. Qc4 {[%clk
0:07:37.1]} 12... Qd7 {[%clk 0:08:58.4]} 13. Qa4 {[%clk 0:07:35.4]} 13... Rac8
{[%clk 0:08:55.4]} 14. d3 {[%clk 0:07:36.5]} 14... Rfd8 {[%clk 0:08:55.7]} 15.
Bd2 {[%clk 0:07:21.1]} 15... Nd5 {[%clk 0:08:51]} 16. Rfd1 {[%clk 0:06:38]}
16... b6 {[%clk 0:08:37.2]} 17. Rac1 {[%clk 0:06:33.1]} 17... Bf6 {[%clk
0:08:29.6]} 18. a3 {[%clk 0:06:26.6]} 18... Nd4 {[%clk 0:08:15]} 19. Qxd7 {[%clk
0:04:28.5]} 19... Rxd7 {[%clk 0:08:16.9]} 20. Nxd5 {[%clk 0:04:21.6]} 20... exd5
{[%clk 0:08:12.5]} 21. Kf1 {[%clk 0:04:22.5]} 21... Re8 {[%clk 0:06:31.3]} 22.
e3 {[%clk 0:03:42.6]} 22... Nb3 {[%clk 0:06:23.9]} 23. Rc2 {[%clk 0:03:44]}
23... Nxd2+ {[%clk 0:06:25.2]} 24. Rcxd2 {[%clk 0:03:39.4]} 24... g6 {[%clk
0:06:10.9]} 25. e4 {[%clk 0:03:39.7]} 25... dxe4 {[%clk 0:06:04.2]} 26. dxe4
{[%clk 0:03:41.6]} 26... Rxd2 {[%clk 0:06:03.3]} 27. Rxd2 {[%clk 0:03:42.6]}
27... Rd8 {[%clk 0:06:03.6]} 1/2-1/2

[Event "GrandPrix_29.05"]
[Site "Chess.com"]
[Date "2020.05.29"]
[Round "1"]
[White "AlexVanGog"]
[Black "LazovT"]
[Result "1-0"]
[WhiteElo "2466"]
[BlackElo "1934"]
[TimeControl "600+2"]
[EndTime "9:13:23 PDT"]
[Termination "AlexVanGog won by resignation"]

1. Nf3 {[%clk 0:09:57.2]} 1... Nf6 {[%clk 0:09:53.2]} 2. c4 {[%clk 0:09:56.6]}
2... g6 {[%clk 0:09:51.6]} 3. Nc3 {[%clk 0:09:56.3]} 3... Bg7 {[%clk 0:09:53.1]}
4. e4 {[%clk 0:09:55.6]} 4... O-O {[%clk 0:09:54.7]} 5. d4 {[%clk 0:09:55.8]}
5... d6 {[%clk 0:09:55.9]} 6. Be2 {[%clk 0:09:56.7]} 6... e5 {[%clk 0:09:53.1]}
7. O-O {[%clk 0:09:56.4]} 7... Na6 {[%clk 0:09:18.9]} 8. Be3 {[%clk 0:09:54]}
8... Ng4 {[%clk 0:09:16]} 9. Bg5 {[%clk 0:09:54.6]} 9... Qe8 {[%clk 0:09:17]}
10. Re1 {[%clk 0:09:42.9]} 10... c6 {[%clk 0:08:21.6]} 11. h3 {[%clk 0:09:38.7]}
11... Nf6 {[%clk 0:08:18.5]} 12. Bf1 {[%clk 0:09:29]} 12... Nh5 {[%clk
0:08:08.6]} 13. Qd2 {[%clk 0:08:40.8]} 13... f6 {[%clk 0:07:25]} 14. Be3 {[%clk
0:08:39.5]} 14... Nc7 {[%clk 0:07:22]} 15. g4 {[%clk 0:08:22]} 15... Nf4 {[%clk
0:07:11.1]} 16. Bxf4 {[%clk 0:08:22.2]} 16... exf4 {[%clk 0:07:13]} 17. Qxf4
{[%clk 0:08:22.1]} 17... Qd8 {[%clk 0:06:54]} 18. Bg2 {[%clk 0:08:04.4]} 18...
Ne6 {[%clk 0:05:44.4]} 19. Qd2 {[%clk 0:08:01.2]} 19... f5 {[%clk 0:05:19.3]}
20. exf5 {[%clk 0:07:40.8]} 20... gxf5 {[%clk 0:05:21.2]} 21. g5 {[%clk
0:07:41.4]} 21... f4 {[%clk 0:04:39.5]} 22. h4 {[%clk 0:07:26.5]} 22... h6
{[%clk 0:04:40.2]} 23. d5 {[%clk 0:07:03.5]} 23... cxd5 {[%clk 0:04:03.5]} 24.
Qxd5 {[%clk 0:06:55]} 24... Re8 {[%clk 0:03:51.1]} 25. Bh3 {[%clk 0:06:39.7]}
25... Qd7 {[%clk 0:03:48.3]} 26. Rxe6 {[%clk 0:06:01.3]} 1-0

[Event "GrandPrix_29.05"]
[Site "Chess.com"]
[Date "2020.05.29"]
[Round "1"]
[White "ArnaudovP"]
[Black "Meizon19"]
[Result "1-0"]
[WhiteElo "2004"]
[BlackElo "2220"]
[TimeControl "600+2"]
[EndTime "9:13:32 PDT"]
[Termination "ArnaudovP won by resignation"]

1. Nf3 {[%clk 0:09:59.2]} 1... Nf6 {[%clk 0:09:59.2]} 2. c4 {[%clk 0:09:56.4]}
2... g6 {[%clk 0:09:58.9]} 3. Nc3 {[%clk 0:09:47.1]} 3... Bg7 {[%clk 0:09:59]}
4. e4 {[%clk 0:09:38.6]} 4... d6 {[%clk 0:09:59.3]} 5. d4 {[%clk 0:09:38.4]}
5... O-O {[%clk 0:09:56.4]} 6. h3 {[%clk 0:09:37.9]} 6... e5 {[%clk 0:09:32.4]}
7. d5 {[%clk 0:09:38]} 7... Nbd7 {[%clk 0:09:29.1]} 8. Be3 {[%clk 0:09:36.7]}
8... a5 {[%clk 0:09:21.3]} 9. g4 {[%clk 0:09:35.4]} 9... Nc5 {[%clk 0:09:16.6]}
10. Nd2 {[%clk 0:09:35.5]} 10... Ne8 {[%clk 0:08:45.1]} 11. Rg1 {[%clk
0:09:32.1]} 11... Kh8 {[%clk 0:08:42.5]} 12. Be2 {[%clk 0:09:28.6]} 12... f5
{[%clk 0:08:34.5]} 13. g5 {[%clk 0:09:24.9]} 13... f4 {[%clk 0:08:26.9]} 14.
Bxc5 {[%clk 0:09:25.8]} 14... dxc5 {[%clk 0:08:28.3]} 15. h4 {[%clk 0:09:26.8]}
15... Nd6 {[%clk 0:08:16.1]} 16. h5 {[%clk 0:09:18.8]} 16... Kg8 {[%clk
0:08:02.7]} 17. h6 {[%clk 0:09:12.9]} 17... Bh8 {[%clk 0:08:03.5]} 18. Bg4
{[%clk 0:09:13.2]} 18... Rf7 {[%clk 0:07:31.8]} 19. Bxc8 {[%clk 0:09:10.3]}
19... Qxc8 {[%clk 0:07:12.6]} 20. Qg4 {[%clk 0:09:09.9]} 20... Qxg4 {[%clk
0:06:09.6]} 21. Rxg4 {[%clk 0:09:09]} 21... f3 {[%clk 0:05:35.2]} 22. O-O-O
{[%clk 0:08:58.9]} 22... Raf8 {[%clk 0:05:34.1]} 23. Rh1 {[%clk 0:08:50.9]}
23... Rf4 {[%clk 0:05:23.5]} 24. Rg3 {[%clk 0:08:32]} 24... a4 {[%clk
0:04:30.5]} 25. Kc2 {[%clk 0:08:28.7]} 25... b6 {[%clk 0:04:19.8]} 26. a3 {[%clk
0:08:24.9]} 26... Kf7 {[%clk 0:03:30.2]} 27. Kd3 {[%clk 0:08:22.2]} 27... Ke7
{[%clk 0:03:11.9]} 28. Nxa4 {[%clk 0:08:18.6]} 28... b5 {[%clk 0:01:46.4]} 29.
Nxc5 {[%clk 0:08:01.6]} 29... bxc4+ {[%clk 0:01:47.2]} 30. Nxc4 {[%clk
0:07:59.8]} 1-0

[Event "GrandPrix_29.05"]
[Site "Chess.com"]
[Date "2020.05.29"]
[Round "1"]
[White "Zhuu96"]
[Black "Tashik"]
[Result "1-0"]
[WhiteElo "2575"]
[BlackElo "2114"]
[TimeControl "600+2"]
[EndTime "9:13:33 PDT"]
[Termination "Zhuu96 won by resignation"]

1. d4 {[%clk 0:09:58.4]} 1... Nf6 {[%clk 0:10:00.2]} 2. Nf3 {[%clk 0:09:52.8]}
2... d5 {[%clk 0:09:59.4]} 3. c4 {[%clk 0:09:47.7]} 3... e6 {[%clk 0:09:58.8]}
4. Nc3 {[%clk 0:09:46.7]} 4... c5 {[%clk 0:09:57.4]} 5. cxd5 {[%clk 0:09:42.2]}
5... Nxd5 {[%clk 0:09:59.3]} 6. Bg5 {[%clk 0:09:05.3]} 6... f6 {[%clk
0:08:14.6]} 7. Bd2 {[%clk 0:09:01.2]} 7... Nc6 {[%clk 0:08:09.7]} 8. e3 {[%clk
0:08:55]} 8... Be7 {[%clk 0:07:44.3]} 9. Bb5 {[%clk 0:08:47.9]} 9... O-O {[%clk
0:07:27]} 10. O-O {[%clk 0:08:42.4]} 10... a6 {[%clk 0:06:45.7]} 11. Bxc6 {[%clk
0:08:39.8]} 11... bxc6 {[%clk 0:06:46.5]} 12. Na4 {[%clk 0:08:38.1]} 12... cxd4
{[%clk 0:06:29.9]} 13. Nxd4 {[%clk 0:08:36.7]} 13... c5 {[%clk 0:04:00.5]} 14.
Nc6 {[%clk 0:08:35.8]} 14... Qd6 {[%clk 0:03:42.9]} 15. Nxe7+ {[%clk 0:08:36.2]}
15... Nxe7 {[%clk 0:03:24.7]} 16. Rc1 {[%clk 0:08:32.9]} 16... Bb7 {[%clk
0:02:45.2]} 17. Nxc5 {[%clk 0:08:30.5]} 17... Bc6 {[%clk 0:02:40.1]} 18. Bb4
{[%clk 0:08:25.5]} 18... Qxd1 {[%clk 0:01:50.2]} 19. Rfxd1 {[%clk 0:08:24.5]}
19... Nd5 {[%clk 0:01:52.1]} 20. Nxe6 {[%clk 0:08:11.2]} 20... Nxb4 {[%clk
0:01:44.1]} 21. Nxf8 {[%clk 0:08:11.4]} 21... Kxf8 {[%clk 0:01:36.7]} 22. Rd4
{[%clk 0:08:03.5]} 1-0

[Event "GrandPrix_29.05"]
[Site "Chess.com"]
[Date "2020.05.29"]
[Round "1"]
[White "GMMarcinDziuba"]
[Black "Khayala13"]
[Result "1-0"]
[WhiteElo "2506"]
[BlackElo "2062"]
[TimeControl "600+2"]
[EndTime "9:13:47 PDT"]
[Termination "GMMarcinDziuba won by resignation"]

1. Nf3 {[%clk 0:09:55.6]} 1... Nf6 {[%clk 0:10:00]} 2. g3 {[%clk 0:09:44.5]}
2... b6 {[%clk 0:09:39.5]} 3. Bg2 {[%clk 0:09:44.5]} 3... Bb7 {[%clk 0:09:39.3]}
4. O-O {[%clk 0:09:41.5]} 4... e6 {[%clk 0:09:38.6]} 5. c4 {[%clk 0:09:40]} 5...
c5 {[%clk 0:09:32.1]} 6. b3 {[%clk 0:09:32.5]} 6... Be7 {[%clk 0:09:14.5]} 7.
Bb2 {[%clk 0:09:29.8]} 7... O-O {[%clk 0:09:09.9]} 8. Nc3 {[%clk 0:09:24.1]}
8... d6 {[%clk 0:09:07.3]} 9. e3 {[%clk 0:09:19.3]} 9... Nbd7 {[%clk 0:08:10.2]}
10. d4 {[%clk 0:09:14.8]} 10... cxd4 {[%clk 0:07:52.5]} 11. exd4 {[%clk
0:08:45.3]} 11... a6 {[%clk 0:07:35.5]} 12. d5 {[%clk 0:08:34.1]} 12... e5
{[%clk 0:07:20.9]} 13. Nh4 {[%clk 0:08:29.3]} 13... g6 {[%clk 0:06:37.4]} 14. f4
{[%clk 0:08:21.4]} 14... exf4 {[%clk 0:06:16.6]} 15. gxf4 {[%clk 0:08:21.8]}
15... Nh5 {[%clk 0:05:43.9]} 16. Nf5 {[%clk 0:08:21.1]} 16... Ndf6 {[%clk
0:04:30.6]} 17. Nxe7+ {[%clk 0:08:07.2]} 17... Qxe7 {[%clk 0:04:32.5]} 18. Qd4
{[%clk 0:08:01.9]} 18... Rfe8 {[%clk 0:04:26.6]} 19. Ne4 {[%clk 0:07:38.8]}
19... Kg7 {[%clk 0:04:00]} 20. Rae1 {[%clk 0:07:38.2]} 20... Qd8 {[%clk
0:01:33.9]} 21. Nxf6 {[%clk 0:07:30]} 21... Qxf6 {[%clk 0:01:29.6]} 22. Qd2
{[%clk 0:07:26.5]} 1-0

[Event "GrandPrix_29.05"]
[Site "Chess.com"]
[Date "2020.05.29"]
[Round "1"]
[White "ly4o"]
[Black "Cocolino12"]
[Result "1-0"]
[WhiteElo "2034"]
[BlackElo "2382"]
[TimeControl "600+2"]
[EndTime "9:13:55 PDT"]
[Termination "ly4o won by resignation"]

1. d4 {[%clk 0:10:00.6]} 1... d5 {[%clk 0:09:50.3]} 2. Bf4 {[%clk 0:09:59.4]}
2... Nf6 {[%clk 0:09:50.2]} 3. e3 {[%clk 0:10:00.4]} 3... c5 {[%clk 0:09:51.2]}
4. dxc5 {[%clk 0:09:54.8]} 4... Nc6 {[%clk 0:09:50.9]} 5. Bb5 {[%clk 0:09:46]}
5... e6 {[%clk 0:09:38]} 6. b4 {[%clk 0:09:45.8]} 6... a5 {[%clk 0:09:38.7]} 7.
c3 {[%clk 0:09:45.4]} 7... axb4 {[%clk 0:09:22.5]} 8. cxb4 {[%clk 0:09:47.3]}
8... Bd7 {[%clk 0:09:23.6]} 9. Qb3 {[%clk 0:09:45.4]} 9... Ne4 {[%clk
0:08:43.3]} 10. Nc3 {[%clk 0:09:27.2]} 10... Qf6 {[%clk 0:08:37.5]} 11. Rc1
{[%clk 0:09:26.1]} 11... Nxc3 {[%clk 0:08:32.5]} 12. Rxc3 {[%clk 0:09:19.3]}
12... Rxa2 {[%clk 0:08:14.5]} 13. Ne2 {[%clk 0:09:01.4]} 13... Ra1+ {[%clk
0:07:42.5]} 14. Rc1 {[%clk 0:08:55.3]} 14... Be7 {[%clk 0:07:34.4]} 15. O-O
{[%clk 0:08:49.9]} 15... Rxc1 {[%clk 0:07:35.2]} 16. Rxc1 {[%clk 0:08:48.9]}
16... O-O {[%clk 0:07:28.9]} 17. h3 {[%clk 0:08:49.4]} 17... e5 {[%clk
0:07:21.2]} 18. Bg3 {[%clk 0:08:48.6]} 18... Be6 {[%clk 0:07:20.3]} 19. Qb2
{[%clk 0:08:41.6]} 19... e4 {[%clk 0:07:04.3]} 20. Nd4 {[%clk 0:08:22]} 20...
Nxd4 {[%clk 0:06:34.3]} 21. Qxd4 {[%clk 0:08:14.3]} 21... Qxd4 {[%clk
0:06:29.7]} 22. exd4 {[%clk 0:08:14.8]} 22... Bf6 {[%clk 0:06:28.6]} 23. Rd1
{[%clk 0:08:11.3]} 23... Ra8 {[%clk 0:06:17.4]} 24. Bc7 {[%clk 0:08:10.3]} 24...
g5 {[%clk 0:06:02.4]} 25. Be2 {[%clk 0:08:01.1]} 25... Ra4 {[%clk 0:05:54]} 26.
Ba5 {[%clk 0:08:01.6]} 26... Bg7 {[%clk 0:05:51]} 27. Bb5 {[%clk 0:07:59.5]}
27... Ra2 {[%clk 0:05:49.9]} 28. c6 {[%clk 0:08:00.5]} 28... bxc6 {[%clk
0:05:50.6]} 29. Bxc6 {[%clk 0:08:02.4]} 29... f5 {[%clk 0:05:49.3]} 30. Bc7
{[%clk 0:07:59.2]} 30... f4 {[%clk 0:05:39.3]} 31. b5 {[%clk 0:07:58.7]} 31...
Rc2 {[%clk 0:05:40.2]} 32. b6 {[%clk 0:07:38]} 32... e3 {[%clk 0:04:38.3]} 33.
fxe3 {[%clk 0:07:35.1]} 33... Bc8 {[%clk 0:04:08.8]} 34. Bxd5+ {[%clk
0:07:35.5]} 34... Kf8 {[%clk 0:04:10.1]} 35. exf4 {[%clk 0:07:32.5]} 35... gxf4
{[%clk 0:04:01.9]} 36. Bd6+ {[%clk 0:07:25.9]} 36... Ke8 {[%clk 0:03:59.2]} 37.
b7 {[%clk 0:07:26.8]} 37... Bxb7 {[%clk 0:03:55.8]} 38. Bxb7 {[%clk 0:07:28.7]}
38... Kd7 {[%clk 0:03:51.6]} 39. Bxf4 {[%clk 0:07:26.6]} 39... Rc4 {[%clk
0:03:43.7]} 40. Be5 {[%clk 0:07:27.2]} 40... Bh6 {[%clk 0:03:42.1]} 41. Be4
{[%clk 0:07:25.4]} 41... Be3+ {[%clk 0:03:41.4]} 42. Kh2 {[%clk 0:07:26.4]}
42... h5 {[%clk 0:03:41.7]} 43. Kg3 {[%clk 0:07:18.7]} 43... Rc3 {[%clk
0:03:39.2]} 44. Rd3 {[%clk 0:07:16.4]} 44... Rxd3 {[%clk 0:03:34]} 45. Bxd3
{[%clk 0:07:18.3]} 45... Ke6 {[%clk 0:03:34.6]} 46. Kh4 {[%clk 0:07:18.3]} 46...
Kd5 {[%clk 0:03:34.6]} 47. Kxh5 {[%clk 0:07:19.2]} 47... Bxd4 {[%clk 0:03:36.2]}
48. Bxd4 {[%clk 0:07:20.2]} 48... Kxd4 {[%clk 0:03:37.9]} 49. g4 {[%clk
0:07:21.4]} 1-0

[Event "GrandPrix_29.05"]
[Site "Chess.com"]
[Date "2020.05.29"]
[Round "1"]
[White "DenisQ"]
[Black "CherepZhenya"]
[Result "1/2-1/2"]
[WhiteElo "1519"]
[BlackElo "2203"]
[TimeControl "600+2"]
[EndTime "9:13:55 PDT"]
[Termination "Game drawn by agreement"]

1. Nf3 {[%clk 0:09:50.3]} 1... c5 {[%clk 0:09:59.9]} 2. c4 {[%clk 0:09:48.7]}
2... Nc6 {[%clk 0:09:59.9]} 3. Nc3 {[%clk 0:09:48.8]} 3... e5 {[%clk 0:10:00.1]}
4. g3 {[%clk 0:09:48.5]} 4... g6 {[%clk 0:10:00.3]} 5. Bg2 {[%clk 0:09:49.1]}
5... Bg7 {[%clk 0:10:01.1]} 6. O-O {[%clk 0:09:49.9]} 6... d6 {[%clk 0:10:01.7]}
7. Ne1 {[%clk 0:09:13.9]} 7... Be6 {[%clk 0:10:00.2]} 8. Nd5 {[%clk 0:08:46.9]}
8... Nge7 {[%clk 0:09:59.6]} 9. Nc2 {[%clk 0:08:44.8]} 9... O-O {[%clk
0:09:59.6]} 10. d3 {[%clk 0:08:39]} 10... Rb8 {[%clk 0:09:57.2]} 11. a4 {[%clk
0:07:59.2]} 11... a5 {[%clk 0:09:56.4]} 12. Nxe7+ {[%clk 0:07:16.2]} 12... Qxe7
{[%clk 0:09:46.4]} 13. Ne3 {[%clk 0:07:15.4]} 13... Qd7 {[%clk 0:09:26.6]} 14.
Nd5 {[%clk 0:07:12.3]} 14... Nb4 {[%clk 0:09:22.4]} 15. Bd2 {[%clk 0:06:22.6]}
15... Bxd5 {[%clk 0:09:15.1]} 16. cxd5 {[%clk 0:05:47.5]} 16... f5 {[%clk
0:09:14.5]} 17. Bxb4 {[%clk 0:05:34.7]} 17... axb4 {[%clk 0:09:12.8]} 18. e4
{[%clk 0:05:05.5]} 18... f4 {[%clk 0:08:49.9]} 19. h4 {[%clk 0:04:48.2]} 19...
fxg3 {[%clk 0:08:27.6]} 20. fxg3 {[%clk 0:04:47.1]} 20... Bh6 {[%clk 0:08:28.1]}
21. Kh2 {[%clk 0:04:32]} 21... Be3 {[%clk 0:08:15.1]} 22. Bh3 {[%clk 0:04:29.3]}
22... Qe7 {[%clk 0:08:14.1]} 23. Qe2 {[%clk 0:02:15.4]} 23... Bd4 {[%clk
0:08:13.1]} 24. Rxf8+ {[%clk 0:02:07.2]} 24... Rxf8 {[%clk 0:08:12.3]} 25. Rf1
{[%clk 0:02:09.1]} 25... Rxf1 {[%clk 0:08:02.9]} 26. Bxf1 {[%clk 0:02:09.5]}
26... Qf6 {[%clk 0:07:35.8]} 27. b3 {[%clk 0:02:02.5]} 27... b6 {[%clk
0:07:29.3]} 28. Bh3 {[%clk 0:02:01]} 28... h5 {[%clk 0:07:28.6]} 29. Kg2 {[%clk
0:01:58.7]} 29... Kg7 {[%clk 0:07:25.1]} 30. Qf3 {[%clk 0:01:58.9]} 30... Qxf3+
{[%clk 0:07:24.9]} 31. Kxf3 {[%clk 0:01:59.5]} 1/2-1/2